fUSD/lending_fUSD_20240630
["ID","MTS","AMOUNT","RATE_DAILY","PERIOD"]
[330791635,1719790234843,-500.0,0.00014999,3]
[330791637,1719790234853,-500.0,0.00014999,3]
[330791639,1719790234863,-595.24,0.00014999,3]
[330791641,1719790234872,-500.0,0.00014999,3]
[330791643,1719790234882,-373.89890985,0.00014999,3]
[330791646,1719790234892,-500.0,0.00014999,3]
[330791649,1719790234901,-500.0,0.00014999,3]
[330791652,1719790234911,-506.28362269,0.00014999,3]
[330791654,1719790234921,-500.0,0.00014999,3]
[330791656,1719790234933,-500.0,0.00014999,2]
[330791658,1719790234943,-559.72502044,0.00014999,3]
[330791660,1719790234952,-500.0,0.00014999,3]
[330791662,1719790234963,-500.0,0.00014999,3]
[330791664,1719790234973,-500.0,0.00014999,3]
[330791667,1719790234983,-500.0,0.00014999,3]
[330791669,1719790234992,-500.0,0.00014999,3]
[330791670,1719790235002,-500.0,0.00014999,3]
[330791671,1719790235011,-500.0,0.00014999,3]
[330791672,1719790235021,-500.0,0.00014999,3]
[330791673,1719790235030,-500.0,0.00014999,3]
[330791674,1719790235040,-500.0,0.00014999,3]
[330791675,1719790235049,-500.0,0.00014999,3]
[330791676,1719790235059,-500.0,0.00014999,3]
[330791677,1719790235069,-500.0,0.00014999,3]
[330791678,1719790235079,-500.0,0.00014999,3]
[330791679,1719790235090,-500.0,0.00014999,3]
[330791680,1719790235104,-500.0,0.00014999,3]
[330791681,1719790235113,-500.0,0.00014999,3]
[330791682,1719790235123,-500.0,0.00014999,3]
[330791683,1719790235132,-500.0,0.00014999,3]
[330791684,1719790235142,-500.0,0.00014999,3]
[330791685,1719790235151,-561.32,0.00014999,3]
[330791686,1719790235161,-500.0,0.00014999,3]
[330791687,1719790235170,-500.0,0.00014999,3]
[330791688,1719790235179,-500.0,0.00014999,3]
[330791689,1719790235190,-500.0,0.00014999,3]
[330791690,1719790235200,-500.0,0.00014999,3]
[330791691,1719790235210,-515.85307451,0.00014999,3]
[330791692,1719790235219,-500.0,0.00014999,3]
[330791693,1719790235229,-500.0,0.00014999,3]
[330791694,1719790235239,-500.0,0.00014999,3]
[330791695,1719790235248,-500.0,0.00014999,3]
[330791696,1719790235259,-500.0,0.00014999,3]
[330791697,1719790235269,-500.0,0.00014999,3]
[330791698,1719790235278,-500.0,0.00014999,3]
[330791699,1719790235288,-500.0,0.00014999,3]
[330791700,1719790235297,-390.0,0.00014999,3]
[330791701,1719790235504,-500.0,0.00014999,3]
[330791702,1719790235516,-500.0,0.00014999,3]
[330791703,1719790235528,-500.0,0.00014999,3]
[330791704,1719790235537,-500.0,0.00014999,3]
[330791705,1719790235547,-500.0,0.00014999,3]
[330791706,1719790235557,-500.0,0.00014999,3]
[330791707,1719790235566,-500.0,0.00014999,3]
[330791708,1719790235576,-561.12,0.00014999,3]
[330791709,1719790235585,-500.0,0.00014999,3]
[330791710,1719790235596,-500.0,0.00014999,3]
[330791711,1719790235605,-500.0,0.00014999,3]
[330791712,1719790235615,-500.0,0.00014999,3]
[330791713,1719790235625,-500.0,0.00014999,3]
[330791714,1719790235634,-522.41221366,0.00014999,3]
[330791715,1719790235644,-500.0,0.00014999,3]
[330791716,1719790235654,-500.0,0.00014999,3]
[330791717,1719790235664,-333.32425056,0.00014999,3]
[330791718,1719790235674,-500.0,0.00014999,3]
[330791719,1719790235685,-500.0,0.00014999,3]
[330791720,1719790235694,-500.0,0.00014999,3]
[330791721,1719790235704,-500.0,0.00014999,3]
[330791722,1719790235714,-500.0,0.00014999,3]
[330791723,1719790235724,-155.73,0.00014999,3]
[330791724,1719790235733,-500.0,0.00014999,3]
[330791725,1719790235743,-500.0,0.00014999,3]
[330791726,1719790235753,-500.0,0.00014999,3]
[330791727,1719790235763,-500.0,0.00014999,3]
[330791728,1719790235772,-524.56,0.00014999,3]
[330791729,1719790235782,-500.0,0.00014999,3]
[330791730,1719790235791,-500.0,0.00014999,3]
[330791731,1719790235801,-500.0,0.00014999,3]
[330791732,1719790235811,-500.0,0.00014999,3]
[330791733,1719790235820,-500.0,0.00014999,3]
[330791734,1719790235831,-500.0,0.00014999,3]
[330791735,1719790235841,-528.14352584,0.00014999,3]
[330791736,1719790235851,-501.07724113,0.00014999,2]
[330791737,1719790235861,-500.0,0.00014999,3]
[330791738,1719790235870,-500.0,0.00014999,3]
[330791739,1719790235880,-500.0,0.00014999,3]
[330791740,1719790235890,-500.0,0.00014999,3]
[330791741,1719790235900,-500.0,0.00014999,3]
[330791742,1719790235909,-500.0,0.00014999,3]
[330791743,1719790235918,-500.0,0.00014999,3]
[330791744,1719790235929,-500.00891085,0.00014999,3]
[330791745,1719790235939,-500.0,0.00014999,3]
[330791746,1719790235948,-500.0,0.00014999,3]
[330791747,1719790235958,-500.0,0.00014999,3]
[330791748,1719790235968,-500.0,0.00014999,3]
[330791749,1719790235977,-500.0,0.00014999,3]
[330791750,1719790235986,-500.0,0.00014999,3]
[330791751,1719790235996,-500.0,0.00014999,3]
[330791752,1719790236005,-500.0,0.00014999,3]
[330791753,1719790236015,-500.0,0.00014999,3]
[330791754,1719790236024,-500.0,0.00014999,3]
[330791755,1719790236034,-500.0,0.00014999,3]
[330791756,1719790236043,-500.0,0.00014999,3]
[330791757,1719790236053,-500.0,0.00014999,3]
[330791758,1719790236063,-269.76469027,0.00014999,3]
[330791759,1719790236072,-500.0,0.00014999,3]
[330791760,1719790236082,-508.62964897,0.00014999,3]
[330791761,1719790236094,-500.0,0.00014999,3]
[330791762,1719790236104,-500.0,0.00014999,3]
[330791763,1719790236113,-500.0,0.00014999,3]
[330791764,1719790236123,-500.0,0.00014999,3]
[330791765,1719790236133,-500.0,0.00014999,3]
[330791766,1719790236143,-500.0,0.00014999,3]
[330791767,1719790236153,-391.41446204,0.00014999,3]
[330791768,1719790236162,-500.0,0.00014999,3]
[330791769,1719790236174,-500.0,0.00014999,3]
[330791770,1719790236185,-500.0,0.00014999,3]
[330791771,1719790236196,-500.0,0.00014999,3]
[330791772,1719790236206,-500.0,0.00014999,3]
[330791773,1719790236216,-500.0,0.00014999,3]
[330791774,1719790236226,-500.0,0.00014999,3]
[330791775,1719790236236,-500.0,0.00014999,3]
[330791776,1719790236246,-500.0,0.00014999,3]
[330791777,1719790236257,-500.0,0.00014999,3]
[330791778,1719790236267,-505.23961009,0.00014999,3]
[330791779,1719790236276,-500.0,0.00014999,3]
[330791780,1719790236286,-207.15016113,0.00014999,3]
[330791781,1719790236296,-505.52305042,0.00014999,3]
[330791782,1719790236307,-500.0,0.00014999,3]
[330791783,1719790236317,-500.0,0.00014999,3]
[330791784,1719790236327,-500.0,0.00014999,3]
[330791785,1719790236337,-500.0,0.00014999,3]
[330791786,1719790236347,-500.0,0.00014999,3]
[330791787,1719790236356,-500.0,0.00014999,3]
[330791788,1719790236367,-500.0,0.00014999,3]
[330791789,1719790236377,-500.0,0.00014999,3]
[330791790,1719790236387,-500.0,0.00014999,3]
[330791791,1719790236397,-500.0,0.00014999,3]
[330791792,1719790236408,-500.0,0.00014999,3]
[330791793,1719790236418,-500.0,0.00014999,3]
[330791794,1719790236431,-500.0,0.00014999,3]
[330791795,1719790236441,-508.82056571,0.00014999,3]
[330791796,1719790236451,-503.28222861,0.00014999,3]
[330791797,1719790236462,-500.0,0.00014999,3]
[330791798,1719790236474,-500.0,0.00014999,3]
[330791799,1719790236484,-500.0,0.00014999,3]
[330791800,1719790236494,-603.84,0.00014999,3]
[330791801,1719790236503,-500.0,0.00014999,3]
[330791802,1719790236513,-501.09,0.00014999,3]
[330791803,1719790236523,-500.0,0.00014999,3]
[330791804,1719790236534,-500.0,0.00014999,3]
[330791805,1719790236544,-500.0,0.00014999,3]
[330791806,1719790236554,-579.95,0.00014999,3]
[330791807,1719790236564,-500.0,0.00014999,3]
[330791808,1719790236574,-500.0,0.00014999,3]
[330791809,1719790236583,-500.0,0.00014999,3]
[330791810,1719790236593,-506.2271393,0.00014999,3]
[330791811,1719790236603,-500.0,0.00014999,3]
[330791812,1719790236614,-500.0,0.00014999,3]
[330791813,1719790236624,-500.0,0.00014999,3]
[330791814,1719790236634,-579.77,0.00014999,3]
[330791815,1719790236644,-500.0,0.00014999,3]
[330791816,1719790236654,-500.0,0.00014999,3]
[330791817,1719790236664,-500.0,0.00014999,3]
[330791818,1719790236674,-500.0,0.00014999,3]
[330791819,1719790236687,-500.0,0.00014999,3]
[330791820,1719790236696,-500.0,0.00014999,3]
[330791821,1719790236706,-500.0,0.00014999,3]
[330791822,1719790236716,-500.0,0.00014999,3]
[330791823,1719790236726,-500.0,0.00014999,3]
[330791824,1719790236735,-500.0,0.00014999,3]
[330791825,1719790236745,-500.0,0.00014999,3]
[330791826,1719790236755,-500.0,0.00014999,3]
[330791827,1719790236764,-500.0,0.00014999,3]
[330791828,1719790236774,-500.0,0.00014999,3]
[330791829,1719790236783,-500.0,0.00014999,3]
[330791830,1719790236793,-500.0,0.00014999,3]
[330791831,1719790236803,-509.39676432,0.00014999,3]
[330791832,1719790236813,-645.11884574,0.00014999,3]
[330791833,1719790236822,-609.42,0.00014999,3]
[330791834,1719790236832,-1039.38694102,0.00014999,5]
[330791835,1719790236842,-507.56555857,0.00014999,3]
[330791836,1719790236851,-500.0,0.00014999,3]
[330791837,1719790236862,-500.0,0.00014999,3]
[330791838,1719790236871,-500.0,0.00014999,3]
[330791839,1719790236881,-500.0,0.00014999,3]
[330791840,1719790236890,-639.49,0.00014999,3]
[330791841,1719790236900,-500.0,0.00014999,3]
[330791842,1719790236909,-590.55809788,0.00014999,3]
[330791843,1719790236919,-500.0,0.00014999,3]
[330791844,1719790236929,-500.0,0.00014999,3]
[330791845,1719790236939,-500.0,0.00014999,3]
[330791846,1719790236948,-500.0,0.00014999,3]
[330791847,1719790236957,-500.0,0.00014999,3]
[330791848,1719790236967,-500.0,0.00014999,3]
[330791849,1719790236976,-500.0,0.00014999,3]
[330791850,1719790236986,-500.0,0.00014999,3]
[330791851,1719790236996,-575.37,0.00014999,3]
[330791852,1719790237006,-500.0,0.00014999,3]
[330791853,1719790237016,-500.0,0.00014999,3]
[330791854,1719790237026,-500.0,0.00014999,3]
[330791855,1719790237035,-505.46566356,0.00014999,3]
[330791856,1719790237045,-500.0,0.00014999,3]
[330791857,1719790237054,-500.0,0.00014999,3]
[330791858,1719790237063,-500.0,0.00014999,3]
[330791859,1719790237073,-507.27508928,0.00014999,3]
[330791860,1719790237082,-500.0,0.00014999,3]
[330791861,1719790237092,-506.92978992,0.00014999,3]
[330791862,1719790237106,-500.0,0.00014999,3]
[330791863,1719790237115,-500.0,0.00014999,3]
[330791864,1719790237125,-500.0,0.00014999,3]
[330791865,1719790237134,-500.0,0.00014999,3]
[330791866,1719790237144,-500.0,0.00014999,3]
[330791867,1719790237154,-500.0,0.00014999,3]
[330791868,1719790237164,-510.63186055,0.00014999,3]
[330791869,1719790237174,-500.0,0.00014999,3]
[330791870,1719790237185,-500.0,0.00014999,3]
[330791871,1719790237196,-620.08,0.00014999,3]
[330791872,1719790237206,-508.11019781,0.00014999,3]
[330791873,1719790237216,-511.56796431,0.00014999,3]
[330791874,1719790237226,-500.0,0.00014999,3]
[330791875,1719790237236,-500.0,0.00014999,3]
[330791876,1719790237246,-500.0,0.00014999,3]
[330791877,1719790237256,-500.0,0.00014999,3]
[330791878,1719790237267,-500.0,0.00014999,3]
[330791879,1719790237278,-500.0,0.00014999,3]
[330791880,1719790237288,-506.67598785,0.00014999,3]
[330791881,1719790237299,-522.17317241,0.00014999,3]
[330791882,1719790237309,-500.0,0.00014999,3]
[330791883,1719790237319,-500.0,0.00014999,3]
[330791884,1719790237329,-410.7576569,0.00014999,3]
[330791885,1719790237339,-500.0,0.00014999,3]
[330791886,1719790237348,-500.0,0.00014999,3]
[330791887,1719790237358,-609.86,0.00014999,3]
[330791888,1719790237369,-500.0,0.00014999,3]
[330791889,1719790237379,-510.10148939,0.00014999,3]
[330791890,1719790237389,-500.0,0.00014999,3]
[330791891,1719790237398,-500.0,0.00014999,3]
[330791892,1719790237408,-600.12,0.00014999,3]
[330791893,1719790237418,-500.0,0.00014999,3]
[330791894,1719790237430,-500.0,0.00014999,3]
[330791895,1719790237441,-500.0,0.00014999,3]
[330791896,1719790237450,-500.0,0.00014999,3]
[330791897,1719790237459,-500.0,0.00014999,3]
[330791898,1719790237470,-500.0,0.00014999,3]
[330791899,1719790237484,-500.0,0.00014999,3]
[330791900,1719790237494,-500.0,0.00014999,3]
[330791901,1719790237504,-500.0,0.00014999,3]
[330791902,1719790237514,-500.0,0.00014999,3]
[330791903,1719790237524,-500.0,0.00014999,3]
[330791904,1719790237534,-500.0,0.00014999,3]
[330791905,1719790237544,-500.0,0.00014999,3]
[330791906,1719790237555,-500.0,0.00014999,3]
[330791907,1719790237565,-500.0,0.00014999,3]
[330791908,1719790237575,-500.0,0.00014999,3]
[330791909,1719790237585,-500.0,0.00014999,3]
[330791910,1719790237595,-500.0,0.00014999,3]
[330791911,1719790237605,-500.0,0.00014999,3]
[330791912,1719790237614,-500.0,0.00014999,3]
[330791913,1719790237624,-500.0,0.00014999,3]
[330791914,1719790237634,-500.0,0.00014999,3]
[330791915,1719790237644,-500.0,0.00014999,3]
[330791916,1719790237656,-500.0,0.00014999,3]
[330791917,1719790237665,-500.0,0.00014999,3]
[330791918,1719790237674,-500.0,0.00014999,3]
[330791919,1719790237689,-500.0,0.00014999,3]
[330791920,1719790237699,-500.0,0.00014999,3]
[330791921,1719790237709,-500.0,0.00014999,3]
[330791922,1719790237718,-500.0,0.00014999,3]
[330791923,1719790237727,-507.69728002,0.00014999,3]
[330791924,1719790237738,-500.0,0.00014999,3]
[330791925,1719790237747,-500.0,0.00014999,3]
[330791926,1719790237758,-439.40678658,0.00014999,3]
[330791927,1719790237768,-535.24,0.00014999,3]
[330791929,1719790237779,-500.0,0.00014999,3]
[330791931,1719790237789,-500.0,0.00014999,3]
[330791932,1719790237799,-500.0,0.00014999,3]
[330791933,1719790237809,-500.0,0.00014999,3]
[330791934,1719790237819,-503.73,0.00014999,3]
[330791935,1719790237829,-500.0,0.00014999,3]
[330791936,1719790237839,-500.0,0.00014999,3]
[330791937,1719790237848,-500.0,0.00014999,3]
[330791938,1719790237858,-500.0,0.00014999,3]
[330791939,1719790237867,-500.0,0.00014999,3]
[330791940,1719790237877,-500.0,0.00014999,3]
[330791941,1719790237887,-500.0,0.00014999,3]
[330791942,1719790237897,-500.0,0.00014999,3]
[330791943,1719790237906,-506.02403045,0.00014999,3]
[330791944,1719790237916,-500.0,0.00014999,3]
[330791945,1719790237925,-500.0,0.00014999,3]
[330791946,1719790237936,-500.0,0.00014999,3]
[330791947,1719790237945,-500.0,0.00014999,3]
[330791948,1719790237954,-523.74,0.00014999,3]
[330791949,1719790237963,-500.0,0.00014999,3]
[330791950,1719790237973,-500.0,0.00014999,3]
[330791951,1719790237982,-571.08799616,0.00014999,3]
[330791952,1719790237992,-500.0,0.00014999,3]
[330791953,1719790238001,-500.0,0.00014999,3]
[330791954,1719790238010,-537.58153424,0.00014999,3]
[330791955,1719790238020,-500.0,0.00014999,3]
[330791956,1719790238029,-500.0,0.00014999,3]
[330791957,1719790238039,-500.0,0.00014999,3]
[330791958,1719790238048,-500.0,0.00014999,3]
[330791959,1719790238058,-500.0,0.00014999,3]
[330791960,1719790238067,-204.8147569,0.00014999,3]
[330791961,1719790238077,-500.0,0.00014999,3]
[330791962,1719790238088,-500.0,0.00014999,3]
[330791963,1719790238102,-500.0,0.00014999,3]
[330791964,1719790238113,-500.0,0.00014999,3]
[330791965,1719790238123,-500.0,0.00014999,3]
[330791966,1719790238134,-500.0,0.00014999,3]
[330791967,1719790238144,-500.0,0.00014999,3]
[330791968,1719790238154,-500.0,0.00014999,3]
[330791969,1719790238163,-503.45053838,0.00014999,3]
[330791970,1719790238173,-500.0,0.00014999,3]
[330791971,1719790238185,-506.47558522,0.00014999,3]
[330791972,1719790238194,-500.0,0.00014999,3]
[330791973,1719790238204,-500.0,0.00014999,3]
[330791974,1719790238214,-508.60408629,0.00014999,3]
[330791975,1719790238223,-500.0,0.00014999,3]
[330791976,1719790238234,-500.0,0.00014999,3]
[330791977,1719790238244,-530188.72162027,0.00015,2]
[330791978,1719790238254,-519892.82600373,0.00015,2]
[330791979,1719790238428,-1000.0,0.00013573,2]
[330791980,1719790238438,-500.0,0.00014998,3]
[330791981,1719790238448,-352.2841565,0.00014998,3]
[330791982,1719790238490,-12.98111803,0.00014998,3]
[330791983,1719790238499,-416.89313387,0.00014999,3]
[330791984,1719790238511,-83.10686613,0.00014999,3]
[330791985,1719790238521,-1030.13583387,0.00015,2]
[330791986,1719790238533,-6208.95724463,0.00015,2]
[330791987,1719790238545,-1047.7158435,0.00015,2]
[330791988,1719790238557,-75475.61951849,0.00015,2]
[330791989,1719790238569,-911.07205506,0.00015,2]
[330791990,1719790239919,-196.34415124,0.0001499,2]
[330791991,1719790239930,-500.0,0.00014999,3]
[330791992,1719790239941,-6525.5075325,0.00015,2]
[330791993,1719790239953,-655.82000289,0.00015,2]
[330791994,1719790239964,-1072.50233623,0.00015,2]
[330791995,1719790239976,-7015.537408,0.00015,2]
[330791996,1719790239988,-1969.22712928,0.00015,2]
[330791997,1719790239999,-4795.42269386,0.00015,2]
[330791998,1719790240199,-150.0,0.00013775,2]
[330791999,1719790240209,-9935.46843237,0.00015,2]
[330792000,1719790240222,-332.697462,0.00015,2]
[330792001,1719790240238,-1654.53650654,0.00015,2]
[330792002,1719790240250,-4693.17062681,0.00015,2]
[330792003,1719790240263,-31483.82356,0.00015,2]
[330792004,1719790240275,-6741.48084712,0.00015,2]
[330792006,1719790240287,-398907.01718245,0.00015,2]
[330792007,1719790240300,-3118.452,0.00015,2]
[330792008,1719790240312,-3210.81251125,0.00015,2]
[330792009,1719790240324,-685.531391,0.00015,2]
[330792010,1719790240336,-1534.74741234,0.00015,2]
[330792011,1719790240348,-5638.59697852,0.00015,2]
[330792012,1719790240456,-150.0,0.00013794,2]
[330792014,1719790240470,-150.0,0.00013799,2]
[330792016,1719790240481,-150.0,0.00013849,2]
[330792018,1719790240492,-150.0,0.00013864,2]
[330792020,1719790240502,-67.76472037,0.00015,2]
[330792023,1719790240514,-326.82220256,0.00015,2]
[330792062,1719790242876,-150.0,0.00013753,2]
[330792064,1719790242886,-150.0,0.00013765,2]
[330792065,1719790242897,-150.0,0.00013768,2]
[330792067,1719790242907,-150.0,0.00013769,2]
[330792069,1719790242917,-150.0,0.00013778,2]
[330792070,1719790242926,-293.22784226,0.00013781,2]
[330792072,1719790242937,-150.0,0.00013788,2]
[330792073,1719790242947,-150.0,0.00013795,2]
[330792075,1719790242956,-150.0,0.00013799,2]
[330792077,1719790242965,-150.0,0.00013825,2]
[330792078,1719790242975,-150.0,0.00013846,2]
[330792080,1719790242985,-150.0,0.00013848,2]
[330792081,1719790242995,-150.0,0.00013894,2]
[330792083,1719790243004,-150.0,0.00013897,2]
[330792085,1719790243014,-150.0,0.00013907,2]
[330792086,1719790243024,-3.30581804,0.00013943,2]
[330792088,1719790243037,-146.69418196,0.00013943,2]
[330792090,1719790243047,-150.0,0.00013948,2]
[330792092,1719790243056,-150.0,0.00013948,2]
[330792093,1719790243066,-150.0,0.00013958,2]
[330792095,1719790243076,-72.4437668,0.00013968,2]
[330792104,1719790243184,-77.5562332,0.00013968,2]
[330792106,1719790243194,-150.0,0.00013968,2]
[330792108,1719790243203,-147.35454327,0.0001398,2]
[330792109,1719790243214,-2.64545673,0.0001398,2]
[330792111,1719790243224,-150.0,0.00013983,2]
[330792113,1719790243234,-150.0,0.00013991,2]
[330792115,1719790243244,-89.64944704,0.00013998,2]
[330792118,1719790243286,-60.35055296,0.00013998,2]
[330792119,1719790243296,-500.0,0.00014999,3]
[330792120,1719790243305,-1032.8652625,0.00015,2]
[330792121,1719790243317,-573.7995604,0.00015,2]
[330792122,1719790243329,-636.87818,0.00015,2]
[330792123,1719790243340,-482.00237009,0.00015,2]
[330792125,1719790248465,-198.45,0.00014999,3]
[330792126,1719790248476,-12683.26976281,0.00015,2]
[330792127,1719790248488,-1338.106914,0.00015,2]
[330792128,1719790248500,-414826.58801414,0.00015,2]
[330792129,1719790248512,-27833.28264239,0.00015,2]
[330792130,1719790248524,-5501.10431999,0.00015,2]
[330792131,1719790248536,-782.7286083,0.00015,2]
[330792133,1719790248835,-1682.55984517,0.00015,2]
[330792164,1719790349974,150.5,0.0001499,30]
[330792165,1719790350063,155.6,0.0001499,30]
[330792166,1719790350126,150.5,0.0001499,30]
[330792167,1719790350420,150.5,0.0001498,30]
[330792168,1719790350459,243.0,0.0001499,30]
[330792169,1719790350494,258.89,0.0001499,30]
[330792170,1719790350607,150.5,0.0001498,30]
[330792171,1719790350878,154.25,0.0001497,30]
[330792172,1719790350912,243.0,0.0001498,30]
[330792173,1719790350942,150.5,0.0001499,30]
[330792174,1719790351089,154.08,0.0001497,30]
[330792175,1719790351355,150.5,0.0001498,30]
[330792176,1719790351391,243.0,0.0001497,30]
[330792177,1719790351852,243.0,0.00015989,30]
[330792178,1719790351883,188.0,0.0001497,30]
[330792179,1719790352322,243.0,0.00015979,30]
[330792180,1719790352792,243.0,0.00015969,30]
[330792202,1719790469891,150.5,0.0001499,30]
[330792203,1719790469923,603.0,0.0001499,30]
[330792204,1719790470177,150.5,0.0001499,30]
[330792205,1719790470334,150.5,0.0001498,30]
[330792206,1719790470646,603.0,0.0001498,30]
[330792207,1719790470673,150.5,0.0001498,30]
[330792208,1719790470804,150.5,0.0001497,30]
[330792209,1719790470860,603.0,0.0001497,30]
[330792210,1719790471110,197.0,0.0001497,30]
[330792211,1719790471342,603.0,0.00015989,30]
[330792212,1719790471650,150.5,0.0001499,30]
[330792213,1719790471824,603.0,0.00015979,30]
[330792214,1719790472157,150.5,0.0001498,30]
[330792215,1719790472301,603.0,0.00015969,30]
[330792216,1719790472631,150.5,0.0001497,30]
[330792217,1719790472785,603.0,0.00015989,30]
[330792219,1719790473121,150.5,0.00015989,30]
[330792220,1719790473242,603.0,0.00015979,30]
[330792221,1719790473572,150.5,0.00015979,30]
[330792222,1719790474028,228.5,0.00015969,30]
[330792237,1719790543641,23682.85911963,0.000112,2]
[330792289,1719790831093,150.5,0.0001499,30]
[330792290,1719790831580,150.5,0.0001498,30]
[330792291,1719790832044,150.5,0.0001497,30]
[330792292,1719790832506,150.5,0.00015989,30]
[330792293,1719790833001,150.5,0.00015979,30]
[330792294,1719790833476,150.5,0.00015969,30]
[330792295,1719790833942,150.5,0.00015989,30]
[330792296,1719790834467,155.5,0.00015979,30]
[330792306,1719791058664,474.34627005,0.00011199,2]
[330792309,1719791241620,-1321000.0,0.000225,120]
[330792314,1719791370153,-581.17,0.00011406,2]
[330792315,1719791370174,-161.80283712,0.00012502,2]
[330792316,1719791370193,-500.0,0.00012602,2]
[330792317,1719791370212,-500.0,0.00012602,2]
[330792318,1719791370231,-500.0,0.00012602,2]
[330792319,1719791370250,-500.0,0.00012602,2]
[330792320,1719791370269,-94.38576288,0.00013153,2]
[330792346,1719791431685,-500.0,0.00012602,2]
[330792349,1719791431694,-191.18,0.00012602,2]
[330792351,1719791431921,-308.82,0.00012602,2]
[330792352,1719791431930,-155.61423712,0.00013153,2]
[330792353,1719791431939,-261.32807275,0.00013161,2]
[330792354,1719791432040,-738.67192725,0.00013161,2]
[330792355,1719791432049,-3688.63171188,0.00013312,2]
[330792356,1719791432060,-1753.51889896,0.00013312,2]
[330792357,1719791432158,-626.85191041,0.00013312,2]
[330792358,1719791432276,-1044.69025439,0.00013312,2]
[330792366,1719791438354,-588.32474144,0.00013312,2]
[330792367,1719791438419,-4493.68351764,0.00013312,2]
[330792368,1719791438432,-304.055,0.00013312,2]
[330792369,1719791438444,-498.57770292,0.00013312,2]
[330792370,1719791438456,-314.72626236,0.00013312,2]
[330792371,1719791438468,-250.0,0.00013369,2]
[330792372,1719791438478,-118.48078782,0.00013397,2]
[330792373,1719791438490,-31.51921218,0.00013397,2]
[330792374,1719791438501,-150.0,0.00013423,2]
[330792375,1719791438511,-233.93,0.00013423,2]
[330792376,1719791438522,-277.66959845,0.00013423,2]
[330792377,1719791438534,-610.779927,0.00013423,2]
[330792378,1719791438554,-1376.78439596,0.00013423,2]
[330792379,1719791438580,-1558.82607859,0.00013423,2]
[330792380,1719791438590,-418.31300241,0.00013424,2]
[330792381,1719791438601,-81.68699759,0.00013424,2]
[330792382,1719791438612,-500.0,0.00013424,2]
[330792383,1719791438627,-158.9,0.0001343,2]
[330792384,1719791438637,-49.39981663,0.00013448,2]
[330792385,1719791438648,-764.20420013,0.00013448,2]
[330792386,1719791438662,-693.39598324,0.00013448,2]
[330792387,1719791438673,-3.46987799,0.0001367,2]
[330792388,1719791438689,-574.59698828,0.0001367,2]
[330792391,1719791439704,-805.46313373,0.0001367,2]
[330792392,1719791439716,-569.32105169,0.0001367,2]
[330792393,1719791439728,-11.84894831,0.0001367,2]
[330792394,1719791439739,-215.79,0.00013699,2]
[330792395,1719791439751,-2035.27,0.00013699,2]
[330792396,1719791439761,-1822.74105169,0.00013699,2]
[330792397,1719791439777,-820.03528135,0.00013699,2]
[330792398,1719791441779,-562.24997308,0.00013423,2]
[330792399,1719791441791,-195.70854833,0.00013423,2]